bitfinex/quotes_SOLUSD_20250621
["timestamp","ask_amount","ask_price","bid_price","bid_amount"]
[1750491514930,32.74,140.56,140.53,31.86712451]
[1750491515838,32.74,140.56,140.53,31.15712451]
[1750491516020,32.74,140.56,140.53,31.86712451]
[1750491517633,6.74,140.56,140.53,31.86712451]
[1750491521530,6.74,140.56,140.53,25.61547168]
[1750491521730,5.33038783,140.55,140.53,25.61547168]
[1750491521949,6.74,140.56,140.53,25.61547168]
[1750491522323,5.33146799,140.55,140.53,25.61547168]
[1750491522524,6.74,140.56,140.53,25.61547168]
[1750491522824,5.33152535,140.55,140.53,25.61547168]
[1750491523133,6.74,140.56,140.53,25.61547168]
[1750491523332,5.33155537,140.55,140.53,25.61547168]
[1750491523543,6.74,140.56,140.53,25.61547168]
[1750491523742,5.33293234,140.55,140.53,25.61547168]
[1750491523918,6.74,140.56,140.53,25.61547168]
[1750491524122,5.33293364,140.55,140.53,31.86712451]
[1750491524361,6.74,140.56,140.53,25.61547168]
[1750491524536,5.33418935,140.55,140.53,25.61547168]
[1750491524854,6.74,140.56,140.53,25.61547168]
[1750491525035,5.33418935,140.55,140.53,25.61547168]
[1750491525339,6.74,140.56,140.53,25.61547168]
[1750491525523,5.33414933,140.55,140.53,31.86712451]
[1750491525723,6.74,140.56,140.53,31.86712451]
[1750491526023,5.33414933,140.55,140.53,31.86712451]
[1750491526231,6.74,140.56,140.53,31.86712451]
[1750491526453,5.33413792,140.55,140.53,25.61547168]
[1750491526635,12.99165283,140.56,140.53,25.61547168]
[1750491526959,5.33412068,140.55,140.53,25.61547168]
[1750491527125,12.99165283,140.56,140.53,25.61547168]
[1750491527324,5.33407362,140.55,140.53,25.61547168]
[1750491527625,12.99165283,140.56,140.53,25.61547168]
[1750491527849,5.33403719,140.55,140.53,25.61547168]
[1750491528052,12.99165283,140.56,140.53,25.61547168]
[1750491528341,5.33406723,140.55,140.53,25.61547168]
[1750491528552,12.99165283,140.56,140.53,25.61547168]
[1750491528730,5.33399818,140.55,140.53,25.61547168]
[1750491529044,12.99165283,140.56,140.53,25.61547168]
[1750491529357,5.33396815,140.55,140.53,25.61547168]
[1750491529651,12.99165283,140.56,140.53,25.61547168]
[1750491529966,5.33389346,140.55,140.53,25.61547168]
[1750491530132,12.99165283,140.56,140.53,25.61547168]
[1750491530329,5.33388789,140.55,140.53,25.61547168]
[1750491530649,12.99165283,140.56,140.53,25.61547168]
[1750491530847,5.33384763,140.55,140.53,25.61547168]
[1750491531152,12.99165283,140.56,140.53,25.61547168]
[1750491531455,5.33384763,140.55,140.53,25.61547168]
[1750491531663,6.74,140.56,140.53,25.61547168]
[1750491531823,5.33379634,140.55,140.53,25.61547168]
[1750491532026,6.74,140.56,140.53,25.61547168]
[1750491532251,5.33379634,140.55,140.53,25.61547168]
[1750491532551,6.74,140.56,140.53,25.61547168]
[1750491532741,5.33375301,140.55,140.53,25.61547168]
[1750491532944,6.74,140.56,140.53,25.61547168]
[1750491533132,5.33375301,140.55,140.53,25.61547168]
[1750491533328,6.74,140.56,140.53,25.61547168]
[1750491533554,5.33371763,140.55,140.53,25.61547168]
[1750491533858,6.74,140.56,140.53,25.61547168]
[1750491534040,5.3336876,140.55,140.53,25.61547168]
[1750491534355,6.74,140.56,140.53,25.61547168]
[1750491534653,5.33367321,140.55,140.53,25.61547168]
[1750491534838,6.74,140.56,140.53,25.61547168]
[1750491535038,5.33370453,140.55,140.53,25.61547168]
[1750491535238,6.74,140.56,140.53,25.61547168]
[1750491535539,5.33370453,140.55,140.53,25.61547168]
[1750491535739,6.74,140.56,140.53,25.61547168]
[1750491535949,5.33369729,140.55,140.53,25.61547168]
[1750491536247,6.74,140.56,140.53,25.61547168]
[1750491536449,5.333696,140.55,140.53,25.61547168]
[1750491536649,12.99165283,140.56,140.53,25.61547168]
[1750491536845,5.33368482,140.55,140.53,25.61547168]
[1750491537051,12.99165283,140.56,140.53,25.61547168]
[1750491537225,5.33368482,140.55,140.53,25.61547168]
[1750491537429,6.01411778,140.54,140.53,7.1159183]
[1750491537635,12.26577061,140.54,140.53,7.1159183]
[1750491538660,12.26577061,140.54,140.52,7.1164247]
[1750491538973,6.93165283,140.54,140.52,7.1164247]
[1750491539134,5.33390216,140.53,140.52,7.1164247]
[1750491539459,12.26555499,140.53,140.52,7.1164247]
[1750491539756,5.33390216,140.53,140.52,7.1164247]
[1750491541647,11.58555499,140.53,140.52,7.1164247]
[1750491543969,6.25165283,140.53,140.52,7.1164247]
[1750491544163,11.58155511,140.53,140.52,7.1164247]
[1750491545471,5.32990228,140.53,140.52,7.1164247]
[1750491548839,12.26155511,140.53,140.52,7.1164247]
[1750491549345,6.25165283,140.53,140.52,7.1164247]
[1750491549545,6.93165283,140.54,140.52,7.1164247]
[1750491550165,6.25165283,140.54,140.51,7.11693117]
[1750491550342,6.25165283,140.54,140.52,0.74]
[1750491553071,24.90130169,140.54,140.53,7.1159183]
[1750491553270,30.22952675,140.54,140.53,7.1159183]
[1750491553868,6.0,140.56,140.53,7.8559183]
[1750491554174,6.0,140.56,140.53,31.1573669]
[1750491554540,6.0,140.56,140.54,0.72]
[1750491555353,6.0,140.56,140.55,7.11490572]
[1750491555554,11.32827498,140.56,140.55,7.11490572]
[1750491555850,6.0,140.56,140.55,7.11490572]
[1750491556053,18.64964886,140.55,140.51,17.79210157]
[1750491556372,6.25165283,140.54,140.52,0.72]
[1750491557374,6.25165283,140.54,140.53,7.1159183]
[1750491557559,11.58058657,140.54,140.53,7.1159183]
[1750491559248,12.30058657,140.54,140.53,7.1159183]
[1750491559452,12.30058657,140.54,140.52,7.1164247]
[1750491559652,6.97165283,140.54,140.52,7.1164247]
[1750491560352,6.97165283,140.53,140.52,7.1164247]
[1750491561459,6.25165283,140.53,140.51,24.90903274]
[1750491561850,6.25165283,140.53,140.51,25.62903274]
[1750491562758,6.97165283,140.54,140.51,25.62903274]
[1750491562971,6.25165283,140.54,140.51,17.79210157]
[1750491563175,6.25165283,140.54,140.52,0.72]
[1750491564479,45.36964886,140.55,140.52,0.72]
[1750491564784,11.5805172,140.54,140.52,0.72]
[1750491564984,6.25165283,140.54,140.52,0.72]
[1750491565154,6.25165283,140.54,140.51,17.79210157]
[1750491565350,6.97165283,140.54,140.51,18.51210157]
[1750491566979,6.97165283,140.54,140.51,25.62903274]
[1750491568690,6.25165283,140.53,140.51,25.62903274]
[1750491582680,5.33190666,140.52,140.51,25.62903274]
[1750491583074,11.58355949,140.52,140.51,7.11693117]
[1750491583278,12.30355949,140.52,140.51,7.11693117]
[1750491584065,11.58355949,140.52,140.51,7.11693117]
[1750491585177,11.58355949,140.52,140.5,7.11743772]
[1750491585379,6.25165283,140.52,140.5,7.11743772]
[1750491587372,6.96165283,140.52,140.5,7.11743772]
[1750491587694,6.25165283,140.51,140.49,24.91276893]
[1750491587994,6.25165283,140.5,140.49,7.11794433]
[1750491591903,6.96165283,140.5,140.49,7.11794433]
[1750491593301,17.57724662,140.5,140.48,7.11845102]
[1750491593506,6.96165283,140.49,140.48,7.11845102]
[1750491594914,6.96165283,140.49,140.47,7.11895778]
[1750491596312,6.25165283,140.48,140.47,7.11895778]
[1750491600404,0.71,140.49,140.47,7.11895778]
[1750491600612,6.25165283,140.49,140.47,7.85895778]
[1750491600789,6.25165283,140.49,140.47,7.11895778]
[1750491600995,6.25165283,140.49,140.48,0.74]
[1750491601805,6.25165283,140.51,140.49,0.74]
[1750491602008,121.65165283,140.52,140.49,0.74]
[1750491603018,121.65165283,140.52,140.5,7.85743772]
[1750491603813,121.65165283,140.52,140.5,7.11743772]
[1750491604001,122.36165283,140.52,140.49,0.74]
[1750491604923,122.36165283,140.52,140.5,7.11743772]
[1750491605499,6.25165283,140.51,140.5,7.11743772]
[1750491607996,6.25165283,140.51,140.48,24.91457858]
[1750491608204,6.25165283,140.51,140.49,0.74]
[1750491608922,95.65165283,140.52,140.49,0.74]
[1750491610206,6.0,140.53,140.5,24.91103202]
[1750491610525,6.0,140.53,140.51,0.74]
[1750491611045,12.25165283,140.53,140.51,0.74]
[1750491612222,12.25165283,140.53,140.52,7.1164247]
[1750491612434,18.28673803,140.53,140.52,7.1164247]
[1750491615219,19.34964886,140.52,140.49,0.69]
[1750491615428,5.32552079,140.51,140.5,7.11733457]
[1750491616121,5.32552079,140.51,140.5,7.80733457]
[1750491616495,5.32552079,140.51,140.5,7.11733457]
[1750491617643,11.57717362,140.51,140.5,7.11733457]
[1750491618805,12.27717362,140.51,140.5,7.11733457]
[1750491619209,11.57717362,140.51,140.5,7.11733457]
[1750491623620,18.64964886,140.5,140.47,0.69]
[1750491623921,6.95165283,140.48,140.45,25.60990032]
[1750491624117,6.25165283,140.47,140.45,7.80997152]
[1750491624325,6.25165283,140.46,140.45,7.11997152]
[1750491624524,6.25165283,140.46,140.42,7.81149266]
[1750491624725,6.25165283,140.44,140.42,7.81149266]
[1750491625323,6.25165283,140.45,140.42,24.92522432]
[1750491625548,6.25165283,140.45,140.43,0.69]
[1750491625939,25.32964886,140.47,140.44,7.81047849]
[1750491625940,18.64964886,140.46,140.44,7.81047849]
[1750491626116,6.25165283,140.45,140.44,7.81047849]
[1750491627921,6.25165283,140.46,140.44,7.81047849]
[1750491628244,24.90130169,140.46,140.44,7.81047849]
[1750491630528,114.30130169,140.46,140.44,7.81047849]
[1750491631953,95.65165283,140.46,140.44,7.81047849]
[1750491634241,95.65165283,140.46,140.43,24.9234494]
[1750491635142,95.65165283,140.46,140.44,0.69]
[1750491635341,95.65165283,140.46,140.45,7.11997152]
[1750491635562,95.65165283,140.46,140.45,7.80997152]
[1750491639449,6.25165283,140.46,140.45,7.80997152]
[1750491639649,12.23165283,140.47,140.45,7.80997152]
[1750491640071,12.23165283,140.47,140.45,7.11997152]
[1750491640253,12.23165283,140.47,140.46,0.69]
[1750491640574,5.98,140.47,140.46,0.69]
[1750491641371,5.98,140.47,140.45,7.11997152]
[1750491641549,5.98,140.47,140.45,7.80997152]
[1750491641882,5.98,140.47,140.46,0.69]
[1750491642678,5.98,140.47,140.45,7.11997152]
[1750491642861,5.98,140.47,140.45,7.80997152]
[1750491643474,5.98,140.47,140.45,7.11997152]
[1750491643677,5.98,140.47,140.46,0.69]
[1750491645363,5.98,140.47,140.46,7.80946461]
[1750491651778,5.98,140.47,140.46,7.83946461]
[1750491654780,5.98,140.47,140.46,14.09111744]
[1750491654980,32.25165283,140.51,140.46,31.88977898]
[1750491655178,32.25165283,140.51,140.48,0.72]
[1750491656098,32.25165283,140.51,140.49,7.11794433]
[1750491656300,26.0,140.51,140.49,7.83794433]
[1750491658191,33.19820169,140.52,140.49,25.63280517]
[1750491660199,122.59820169,140.52,140.49,25.63280517]
[1750491660401,116.34654886,140.52,140.49,25.63280517]
[1750491660707,122.59820169,140.52,140.49,25.63280517]
[1750491661190,101.63165283,140.52,140.49,24.91280517]
[1750491661395,95.38,140.52,140.5,0.72]
[1750491662400,5.98,140.52,140.5,0.72]
[1750491663177,5.98,140.52,140.49,31.164458]
[1750491663502,5.98,140.52,140.51,7.11693117]
[1750491663695,5.98,140.52,140.51,7.83693117]
[1750491666110,5.98,140.52,140.51,14.088584]
[1750491671796,5.98,140.52,140.51,7.83693117]
[1750491672023,5.98,140.52,140.51,14.088584]
[1750491672322,89.4,140.54,140.51,31.88091194]
[1750491672632,26.0,140.55,140.53,7.1159183]
[1750491673012,32.98165283,140.55,140.53,7.1159183]
[1750491674720,6.99165283,140.54,140.53,7.1159183]
[1750491675022,25.64130169,140.54,140.53,7.1159183]
[1750491676932,0.74,140.53,140.51,17.79232794]
[1750491677134,0.74,140.51,140.5,7.11743772]
[1750491677300,6.99165283,140.51,140.5,7.11743772]
[1750491678200,6.25165283,140.52,140.5,7.80743772]
[1750491678507,6.25165283,140.52,140.5,7.11743772]
[1750491679311,6.25165283,140.52,140.5,0.69]
[1750491679930,6.25165283,140.52,140.49,24.91268816]
[1750491680126,6.25165283,140.52,140.49,25.60268816]
[1750491681103,6.99165283,140.52,140.49,25.60268816]
[1750491682832,6.25165283,140.52,140.49,25.60268816]
[1750491683031,6.25165283,140.52,140.49,24.91268816]
[1750491683216,6.25165283,140.52,140.5,0.69]
[1750491683923,6.25165283,140.52,140.51,7.11693117]
[1750491684118,12.23165283,140.53,140.51,7.80693117]
[1750491684315,12.97165283,140.53,140.51,7.11693117]
[1750491684519,12.23165283,140.53,140.51,7.11693117]
[1750491685017,12.97165283,140.53,140.51,7.11693117]
[1750491685328,6.99165283,140.52,140.51,7.11693117]
[1750491685527,25.64130169,140.52,140.51,7.11693117]
[1750491686809,25.64130169,140.52,140.49,24.91268816]
[1750491687027,6.25165283,140.51,140.49,24.91268816]
[1750491688840,25.64130169,140.52,140.49,24.91268816]
[1750491689137,25.64130169,140.52,140.49,25.60268816]
[1750491690736,6.25165283,140.51,140.49,24.91268816]
[1750491691726,6.25165283,140.51,140.49,25.60268816]
[1750491692945,6.25165283,140.51,140.48,7.11845102]
[1750491693117,6.99165283,140.49,140.48,7.11845102]
[1750491695118,6.99165283,140.49,140.47,24.91610754]
[1750491697245,6.99165283,140.48,140.47,7.11895778]
[1750491698141,6.99165283,140.48,140.45,24.91990032]
[1750491698332,6.99165283,140.48,140.45,25.60990032]
[1750491700923,6.25165283,140.48,140.45,25.60990032]
[1750491702335,6.25165283,140.48,140.45,24.91990032]
[1750491702537,6.25165283,140.48,140.47,7.11895778]
[1750491709264,6.0,140.49,140.48,0.74]
[1750491710557,6.0,140.49,140.48,7.85845102]
[1750491723567,95.65165283,140.5,140.48,7.85845102]
[1750491724552,96.33165283,140.5,140.48,7.11845102]
[1750491744983,95.65165283,140.5,140.48,7.80845102]
[1750491745587,95.65165283,140.5,140.48,7.11845102]
[1750491745788,96.36165283,140.5,140.48,7.11845102]
[1750491745956,95.4,140.52,140.48,6.94165283]
[1750491746286,102.36165283,140.52,140.49,0.69]
[1750491746670,0.71,140.51,140.49,0.69]
[1750491747052,101.65165283,140.52,140.49,0.69]
[1750491747053,96.11,140.52,140.49,0.69]
[1750491747253,102.36165283,140.52,140.49,0.69]
[1750491748568,102.36165283,140.52,140.5,7.11743772]
[1750491755987,101.65165283,140.52,140.51,0.69]
[1750491756288,17.57629999,140.52,140.5,7.80743772]
[1750491756472,12.25165283,140.52,140.5,7.80743772]
[1750491757671,12.25165283,140.52,140.5,0.69]
[1750491758279,12.25165283,140.52,140.49,31.16412782]
[1750491758481,12.25165283,140.52,140.5,0.69]
[1750491759901,12.25165283,140.52,140.51,7.11693117]
[1750491760198,17.57730404,140.52,140.51,7.11693117]
[1750491763994,18.28730404,140.52,140.51,7.11693117]
[1750491764572,18.28730404,140.52,140.49,17.79453066]
[1750491764794,6.97165283,140.51,140.49,17.79453066]
[1750491766594,6.97165283,140.51,140.49,24.91247499]
[1750491767779,6.97165283,140.5,140.49,24.91247499]
[1750491768204,12.299102,140.5,140.49,24.91247499]
[1750491768703,12.299102,140.5,140.48,7.11845102]
[1750491768905,6.25165283,140.49,140.48,7.11845102]
[1750491771386,6.97165283,140.49,140.48,7.11845102]
[1750491771594,12.29937936,140.49,140.48,7.11845102]
[1750491772686,12.29937936,140.49,140.47,24.91619079]
[1750491773007,6.25165283,140.48,140.47,24.91619079]
[1750491775287,6.25165283,140.48,140.47,7.11895778]
[1750491780720,96.37165283,140.48,140.45,7.11997152]
[1750491781008,6.97165283,140.46,140.45,7.11997152]
[1750491782289,6.97165283,140.46,140.44,7.12047849]
[1750491782710,6.25165283,140.45,140.44,7.12047849]
[1750491784606,6.97165283,140.45,140.44,7.12047849]
[1750491785207,6.25165283,140.45,140.44,7.12047849]
[1750491798716,6.25165283,140.45,140.43,7.12098554]
[1750491798934,6.25165283,140.44,140.43,7.80098554]
[1750491800229,96.06,140.46,140.43,7.80098554]
[1750491800426,6.25165283,140.44,140.43,7.80098554]
[1750491801131,95.38,140.46,140.44,0.68]
[1750491802204,5.98,140.46,140.45,7.11997152]
[1750491802401,5.98,140.46,140.45,7.79997152]
[1750491804116,5.98,140.46,140.45,14.05162435]
[1750491805811,89.4,140.48,140.45,14.05162435]
[1750491805812,89.4,140.48,140.46,0.68]
[1750491806128,6.25165283,140.5,140.46,6.25165283]
[1750491806339,6.25165283,140.5,140.47,0.68]
[1750491808040,6.25165283,140.5,140.48,7.11845102]
[1750491808253,6.25165283,140.5,140.48,7.79845102]
[1750491812039,121.38,140.51,140.48,24.91457858]
[1750491812246,6.25165283,140.5,140.49,0.68]
[1750491812945,121.38,140.51,140.48,24.91457858]
[1750491813150,121.38,140.51,140.49,0.68]
[1750491814129,121.38,140.51,140.5,7.11743772]
[1750491814338,121.38,140.51,140.5,7.79743772]
[1750491815043,95.38,140.51,140.5,7.79743772]
[1750491816853,5.98,140.51,140.5,7.79743772]
[1750491818148,5.98,140.51,140.5,7.11743772]
[1750491818352,5.98,140.51,140.5,14.04909055]
[1750491819454,5.98,140.51,140.5,7.79743772]
[1750491825660,5.98,140.51,140.5,14.04909055]
[1750491826264,5.98,140.51,140.5,7.79743772]
[1750491829367,5.98,140.51,140.5,7.11743772]
[1750491835370,5.98,140.51,140.5,7.86743772]
[1750491835668,5.98,140.51,140.5,7.11743772]
[1750491836572,5.98,140.51,140.5,7.86743772]
[1750491837275,5.98,140.51,140.49,7.86794433]
[1750491842379,5.98,140.51,140.5,0.75]
[1750491843057,6.96165283,140.53,140.51,7.11693117]
[1750491845980,6.96165283,140.53,140.5,25.66088996]
[1750491847067,6.96165283,140.53,140.51,0.75]
[1750491847481,96.09,140.54,140.51,0.75]
[1750491847685,11.57036665,140.53,140.51,0.75]
[1750491847864,6.25165283,140.53,140.51,0.75]
[1750491848189,95.38,140.54,140.52,7.1164247]
[1750491848360,95.38,140.54,140.53,0.75]
[1750491848668,11.30000075,140.54,140.53,0.75]
[1750491849185,11.30000075,140.54,140.53,7.8659183]
[1750491849791,11.30234551,140.54,140.53,7.8659183]
[1750491850398,5.98,140.54,140.53,7.8659183]
[1750491856201,5.98,140.54,140.53,14.11757113]
[1750491858382,6.25165283,140.57,140.53,31.9073669]
[1750491858704,6.25165283,140.57,140.53,31.1573669]
[1750491859209,6.25165283,140.57,140.54,0.68]
[1750491859403,6.25165283,140.57,140.55,7.11490572]
[1750491859790,6.25165283,140.57,140.55,7.79490572]
[1750491861005,6.25165283,140.57,140.54,24.90394193]
[1750491861202,6.93165283,140.57,140.54,25.58394193]
[1750491864496,0.68,140.57,140.54,25.58394193]
[1750491864704,6.93165283,140.57,140.54,25.58394193]
[1750491868913,6.25165283,140.57,140.54,24.90394193]
[1750491869093,6.25165283,140.57,140.55,0.68]
[1750491871311,6.25165283,140.57,140.56,7.11439954]
[1750491871616,6.93165283,140.57,140.56,7.11439954]
[1750491873912,6.93165283,140.57,140.55,7.11490572]
[1750491876597,6.25165283,140.57,140.55,7.79490572]
[1750491877114,6.25165283,140.57,140.55,7.11490572]
[1750491877423,6.93165283,140.57,140.54,25.58394193]
[1750491881621,6.93165283,140.57,140.56,7.11439954]
[1750491881622,6.25165283,140.57,140.56,7.11439954]
[1750491883728,6.25165283,140.57,140.54,24.90394193]
[1750491883901,6.93165283,140.57,140.54,25.58394193]
[1750491886825,6.25165283,140.55,140.54,7.11541198]
[1750491887135,6.25165283,140.55,140.53,7.1159183]
[1750491887334,6.94165283,140.54,140.53,7.1159183]
[1750491889142,6.94165283,140.54,140.52,7.1164247]
[1750491890346,6.25165283,140.54,140.52,7.8264247]
[1750491894030,6.25165283,140.54,140.52,7.1164247]
[1750491894643,6.25165283,140.54,140.52,7.8264247]
[1750491896643,6.94165283,140.54,140.52,7.1164247]
[1750491897229,6.25165283,140.54,140.52,7.1164247]
[1750491897442,6.25165283,140.54,140.52,7.8264247]
[1750491898838,6.94165283,140.54,140.52,7.1164247]
[1750491899147,6.25165283,140.53,140.52,7.1164247]
[1750491900339,6.94165283,140.53,140.51,17.79127021]
[1750491900735,6.25165283,140.54,140.51,17.79127021]
[1750491901050,6.25165283,140.55,140.52,0.71]
[1750491902250,6.25165283,140.55,140.53,7.1159183]
[1750491902550,6.25165283,140.55,140.54,0.71]
[1750491903571,6.25165283,140.55,140.54,7.82541198]
[1750491903755,95.38,140.56,140.55,0.71]
[1750491905431,95.38,140.56,140.54,7.11541198]
[1750491905632,95.38,140.56,140.54,7.82541198]
[1750491906045,101.63165283,140.56,140.54,7.82541198]
[1750491908662,12.23165283,140.56,140.54,7.82541198]
[1750491909768,5.98,140.56,140.55,0.71]
[1750491910067,5.98,140.56,140.55,7.11490572]
[1750491910276,5.98,140.56,140.55,7.82490572]
[1750491912344,117.25527034,140.6,140.56,0.71]
[1750491912548,27.85527034,140.6,140.58,0.71]
[1750491913076,27.85527034,140.6,140.58,6.25165283]
[1750491913403,27.85527034,140.6,140.59,0.71]
[1750491913966,27.85527034,140.6,140.59,7.82288142]
[1750491915738,27.85527034,140.6,140.59,7.79288142]
[1750491915968,27.85527034,140.6,140.59,14.04453425]
[1750491917463,27.85527034,140.6,140.59,7.79288142]
[1750491917768,27.85527034,140.6,140.59,14.04453425]
[1750491921272,5.98,140.61,140.59,14.04453425]
[1750491921644,5.98,140.61,140.59,7.79288142]
[1750491924753,5.98,140.61,140.59,7.11288142]
[1750491924966,5.98,140.61,140.6,7.79237553]
[1750491933381,5.98,140.61,140.6,7.11237553]
[1750491933974,5.98,140.61,140.6,7.79237553]
[1750491937988,5.98,140.61,140.59,7.11288142]
[1750491938194,5.98,140.61,140.59,7.79288142]
[1750491940393,5.98,140.61,140.59,7.11288142]
[1750491940575,5.98,140.61,140.6,7.79237553]
[1750491944597,6.25165283,140.65,140.6,31.14496719]
[1750491944788,6.7,140.66,140.62,0.73]
[1750491944987,5.98,140.66,140.63,0.73]
[1750491945183,5.98,140.66,140.63,6.25165283]
[1750491945379,5.98,140.66,140.64,0.73]
[1750491946700,5.98,140.66,140.65,7.10984713]
[1750491952004,5.98,140.66,140.65,0.73]
[1750491953307,5.98,140.66,140.65,7.83984713]
[1750491960612,6.97165283,140.68,140.65,25.61446497]
[1750491962497,0.72,140.68,140.65,31.8661178]
[1750491963418,0.72,140.66,140.65,24.88446497]
[1750491963614,6.25165283,140.67,140.65,24.88446497]
[1750491964813,6.25165283,140.67,140.65,18.50461784]
[1750491965604,6.25165283,140.67,140.65,25.61446497]
[1750491972223,6.25165283,140.67,140.65,24.88446497]
[1750491972400,6.97165283,140.67,140.65,24.88446497]
[1750491973330,6.25165283,140.67,140.65,25.61446497]
[1750491976629,6.97165283,140.68,140.65,25.61446497]
[1750491977307,6.25165283,140.67,140.65,25.61446497]
[1750491980341,6.97165283,140.68,140.65,25.61446497]
[1750491981625,6.93165283,140.66,140.65,7.10984713]
[1750491981829,0.68,140.65,140.62,7.11136395]
[1750491982032,32.53550169,140.66,140.62,7.11136395]
[1750491982033,6.25165283,140.63,140.62,7.11136395]
[1750491982213,6.93165283,140.63,140.62,7.11136395]
[1750491982712,6.93165283,140.63,140.61,24.89143303]
[1750491983124,6.25165283,140.63,140.61,24.89143303]
[1750491983328,6.25165283,140.63,140.61,25.63143303]
[1750491985313,6.25165283,140.66,140.61,24.89143303]
[1750491985518,12.23165283,140.66,140.62,6.25165283]
[1750491985732,12.23165283,140.66,140.63,0.74]
[1750491986652,12.23165283,140.66,140.64,7.11035267]
[1750491987617,12.23165283,140.66,140.64,7.85035267]
[1750491988533,6.25165283,140.66,140.64,7.85035267]
[1750491989241,102.31165283,140.67,140.64,25.62623435]
[1750491989541,95.38,140.67,140.65,0.74]
[1750491990729,95.38,140.67,140.66,7.10934167]
[1750491991320,5.98,140.67,140.66,7.10934167]
[1750491992648,5.98,140.67,140.66,7.84934167]
[1750491993148,5.98,140.67,140.66,7.10934167]
[1750491993345,6.66,140.67,140.66,7.10934167]
[1750491993530,5.98,140.67,140.66,7.10934167]
[1750491994446,5.98,140.67,140.65,7.84984713]
[1750491998845,12.23165283,140.67,140.65,7.84984713]
[1750492000146,12.23165283,140.67,140.65,0.74]
[1750492001365,5.98,140.67,140.66,7.10934167]
[1750492001743,5.98,140.67,140.66,7.84934167]
[1750492004170,11.30324377,140.67,140.66,7.84934167]
[1750492004348,5.98,140.67,140.66,7.84934167]
[1750492006755,5.98,140.67,140.66,7.82934167]
[1750492009367,5.98,140.67,140.66,7.10934167]
[1750492009551,26.0,140.7,140.66,25.60269585]
[1750492009751,26.0,140.7,140.67,0.72]
[1750492009956,26.0,140.7,140.68,0.72]
[1750492010356,29.25081015,140.71,140.67,6.25165283]
[1750492010554,5.32195858,140.7,140.69,7.10782571]
[1750492010771,29.25081015,140.71,140.69,7.82782571]
[1750492011176,22.99915732,140.71,140.69,7.82782571]
[1750492011675,29.25081015,140.71,140.69,7.82782571]
[1750492012973,29.96081015,140.71,140.69,7.10782571]
[1750492016070,29.25081015,140.71,140.69,7.10782571]
[1750492016277,29.96081015,140.71,140.69,7.10782571]
[1750492018777,29.25081015,140.71,140.68,24.87871988]
[1750492018975,22.99915732,140.71,140.69,0.72]
[1750492019962,22.99915732,140.71,140.69,6.25165283]
[1750492020161,22.99915732,140.71,140.7,0.72]
[1750492020672,22.99915732,140.71,140.7,7.82732054]
[1750492021276,24.90130169,140.75,140.71,0.72]
[1750492021589,129.05375183,140.76,140.72,6.25165283]
[1750492021766,26.0,140.74,140.73,0.72]
[1750492022854,26.0,140.74,140.73,7.82580544]
[1750492023257,7.402099,140.76,140.74,0.72]
[1750492024182,7.402099,140.76,140.75,6.97165283]
[1750492024475,1.442099,140.76,140.75,6.97165283]
[1750492024858,0.942099,140.76,140.75,14.07644856]
[1750492025184,0.71,140.85,140.77,0.43]
[1750492025375,6.67,140.87,140.83,6.68165283]
[1750492025760,6.67,140.87,140.83,6.25165283]
[1750492026066,6.25165283,140.84,140.79,26.0]
[1750492026264,0.71,140.83,140.78,0.43]
[1750492026469,0.71,140.83,140.8,32.25165283]
[1750492026865,10.42475019,140.83,140.81,7.10176834]
[1750492027056,0.71,140.82,140.81,7.10176834]
[1750492029777,9.71475019,140.83,140.81,7.10176834]
[1750492030088,10.42475019,140.83,140.81,7.10176834]
[1750492030875,9.71475019,140.84,140.81,7.10176834]
[1750492031075,10.42475019,140.84,140.81,7.10176834]
[1750492031974,9.71475019,140.84,140.81,7.10176834]
[1750492032185,0.71,140.83,140.81,7.10176834]
[1750492033966,10.42475019,140.83,140.81,7.10176834]
[1750492034195,10.42475019,140.83,140.8,7.10227272]
[1750492034370,10.42475019,140.83,140.8,24.85795453]
[1750492036180,108.04964886,140.86,140.8,34.57270472]
[1750492036374,9.71475019,140.84,140.8,35.00270472]
[1750492036568,9.71475019,140.84,140.8,34.57270472]
[1750492036767,0.69,140.83,140.8,34.57270472]
[1750492037086,10.40475019,140.84,140.8,34.57270472]
[1750492037286,9.71475019,140.84,140.8,34.57270472]
[1750492037491,0.69,140.83,140.8,34.57270472]
[1750492037982,10.40475019,140.84,140.8,35.00270472]
[1750492040794,9.71475019,140.84,140.8,35.00270472]